[Event "Titled Tuesday Blitz May 30 Early 2023"]
[White "Buscar, Michael"]
[Black "surrenderPLS"]
[WhiteFideId "2603616"]
[WhiteElo "2010"]
[BlackElo "2507"]
[Result "0-1"]
[Round "04"]
[TimeControl "180+2"]
[Date "2023.05.30"]
[WhiteClock "0:00:05"]
[BlackClock "0:00:03"]

1. d4 {[%clk 0:03:00]}  Nf6 {[%clk 0:03:00]} 2. c4 {[%clk 0:03:00]}  e6 {[%clk 0:03:00]} 3. Nc3 {[%clk 0:03:00]}  Bb4 {[%clk 0:03:01]} 4. e3 {[%clk 0:02:58]}  O-O {[%clk 0:03:00]} 5. Bd3 {[%clk 0:02:59]}  Re8 {[%clk 0:03:00]} 6. Ne2 {[%clk 0:02:59]}  d5 {[%clk 0:02:58]} 7. O-O {[%clk 0:02:59]}  c5 {[%clk 0:02:57]} 8. a3 {[%clk 0:02:56]}  Bxc3 {[%clk 0:02:54]} 9. Nxc3 {[%clk 0:02:56]}  cxd4 {[%clk 0:02:54]} 10. exd4 {[%clk 0:02:56]}  Nc6 {[%clk 0:02:55]} 11. Bg5 {[%clk 0:02:55]}  h6 {[%clk 0:02:54]} 12. cxd5 {[%clk 0:02:40]}  hxg5 {[%clk 0:02:38]} 13. dxc6 {[%clk 0:02:39]}  bxc6 {[%clk 0:02:39]} 14. Qd2 {[%clk 0:02:33]}  Nd5 {[%clk 0:02:35]} 15. Ne4 {[%clk 0:02:28]}  Nf4 {[%clk 0:02:18]} 16. Bc2 {[%clk 0:02:16]}  Qxd4 {[%clk 0:02:05]} 17. Rad1 {[%clk 0:01:54]}  Qxd2 {[%clk 0:02:02]} 18. Rxd2 {[%clk 0:01:54]}  f6 {[%clk 0:02:00]} 19. Rd6 {[%clk 0:01:50]}  e5 {[%clk 0:01:41]} 20. Rxc6 {[%clk 0:01:46]}  Ne2+ {[%clk 0:01:37]} 21. Kh1 {[%clk 0:01:45]}  Nd4 {[%clk 0:01:38]} 22. Rc3 {[%clk 0:01:44]}  Bf5 {[%clk 0:01:23]} 23. f3 {[%clk 0:01:28]}  Rec8 {[%clk 0:01:09]} 24. Bb3+ {[%clk 0:01:11]}  Nxb3 {[%clk 0:00:59]} 25. Rxb3 {[%clk 0:01:11]}  Rcb8 {[%clk 0:00:59]} 26. Rxb8+ {[%clk 0:01:01]}  Rxb8 {[%clk 0:01:00]} 27. b4 {[%clk 0:00:43]}  a5 {[%clk 0:00:58]} 28. bxa5 {[%clk 0:00:36]}  Bxe4 {[%clk 0:00:50]} 29. fxe4 {[%clk 0:00:36]}  Rb5 {[%clk 0:00:49]} 30. h3 {[%clk 0:00:26]}  Rxa5 {[%clk 0:00:49]} 31. Rf3 {[%clk 0:00:26]}  Ra4 {[%clk 0:00:49]} 32. Re3 {[%clk 0:00:26]}  Kf7 {[%clk 0:00:50]} 33. Kh2 {[%clk 0:00:27]}  Ke6 {[%clk 0:00:50]} 34. Kg3 {[%clk 0:00:28]}  g6 {[%clk 0:00:50]} 35. Kg4 {[%clk 0:00:23]}  Rd4 {[%clk 0:00:29]} 36. Kf3 {[%clk 0:00:22]}  Ra4 {[%clk 0:00:23]} 37. Rb3 {[%clk 0:00:22]}  f5 {[%clk 0:00:23]} 38. Rb6+ {[%clk 0:00:21]}  Kf7 {[%clk 0:00:23]} 39. Rb7+ {[%clk 0:00:20]}  Kf6 {[%clk 0:00:23]} 40. Rb6+ {[%clk 0:00:20]}  Kg7 {[%clk 0:00:23]} 41. exf5 {[%clk 0:00:18]}  gxf5 {[%clk 0:00:22]} 42. Rb3 {[%clk 0:00:16]}  e4+ {[%clk 0:00:17]} 43. Ke3 {[%clk 0:00:13]}  f4+ {[%clk 0:00:17]} 44. Ke2 {[%clk 0:00:11]}  Ra5 {[%clk 0:00:14]} 45. Rb4 {[%clk 0:00:06]}  e3 {[%clk 0:00:13]} 46. Rb3 {[%clk 0:00:06]}  Kf6 {[%clk 0:00:13]} 47. Kf3 {[%clk 0:00:06]}  Kf5 {[%clk 0:00:13]} 48. g3 {[%clk 0:00:06]}  Re5 {[%clk 0:00:12]} 49. gxf4 {[%clk 0:00:03]}  e2 {[%clk 0:00:09]} 50. fxe5 {[%clk 0:00:03]}  e1=Q {[%clk 0:00:08]} 51. Re3 {[%clk 0:00:03]}  Qf1+ {[%clk 0:00:08]} 52. Kg3 {[%clk 0:00:04]}  Qg1+ {[%clk 0:00:07]} 53. Kf3 {[%clk 0:00:04]}  g4+ {[%clk 0:00:07]} 54. hxg4+ {[%clk 0:00:05]}  Qxg4+ {[%clk 0:00:08]} 55. Kf2 {[%clk 0:00:06]}  Kf4 {[%clk 0:00:07]} 56. e6 {[%clk 0:00:04]}  Qh4+ {[%clk 0:00:06]} 57. Ke2 {[%clk 0:00:05]}  Qh5+ {[%clk 0:00:06]} 58. Kd2 {[%clk 0:00:05]}  Qa5+ {[%clk 0:00:04]} 59. Ke2 {[%clk 0:00:05]}  Qb5+ {[%clk 0:00:03]} 60. Kd2 {[%clk 0:00:05]}  Qb2+ {[%clk 0:00:03]} 61. Ke1 {[%clk 0:00:04]}  Kxe3 {[%clk 0:00:03]} 62. e7 {[%clk 0:00:05]}  Qe2# {[%clk 0:00:03]} 0-1


[Site "https://www.chess.com"]

[Event "Titled Tuesday Blitz May 30 Early 2023"]
[White "Blokhin, Sofia"]
[Black "Erzhanov, Arman"]
[WhiteFideId "4508190"]
[BlackFideId "4138821"]
[WhiteElo "1994"]
[BlackElo "2138"]
[Result "1-0"]
[Round "04"]
[TimeControl "180+2"]
[Date "2023.05.30"]
[WhiteClock "0:00:57"]
[BlackClock "0:01:23"]

1. e4 {[%clk 0:03:00]}  d6 {[%clk 0:02:59]} 2. d4 {[%clk 0:02:59]}  Nf6 {[%clk 0:03:00]} 3. Nc3 {[%clk 0:02:58]}  c6 {[%clk 0:03:00]} 4. f3 {[%clk 0:02:58]}  e5 {[%clk 0:03:00]} 5. Be3 {[%clk 0:02:58]}  b5 {[%clk 0:03:00]} 6. Qd2 {[%clk 0:02:57]}  Qa5 {[%clk 0:02:58]} 7. a3 {[%clk 0:02:49]}  Be7 {[%clk 0:02:57]} 8. O-O-O {[%clk 0:02:47]}  O-O {[%clk 0:02:55]} 9. Kb1 {[%clk 0:02:46]}  Nbd7 {[%clk 0:02:52]} 10. Nd5 {[%clk 0:02:37]}  Qd8 {[%clk 0:02:51]} 11. Nxe7+ {[%clk 0:02:37]}  Qxe7 {[%clk 0:02:52]} 12. g4 {[%clk 0:02:32]}  Nb6 {[%clk 0:02:51]} 13. h4 {[%clk 0:02:27]}  Nc4 {[%clk 0:02:48]} 14. Bxc4 {[%clk 0:02:26]}  bxc4 {[%clk 0:02:48]} 15. h5 {[%clk 0:02:24]}  Rb8 {[%clk 0:02:47]} 16. Ka1 {[%clk 0:02:21]}  Qb7 {[%clk 0:02:46]} 17. Rb1 {[%clk 0:02:13]}  Nd7 {[%clk 0:02:42]} 18. g5 {[%clk 0:02:09]}  Qa6 {[%clk 0:02:39]} 19. dxe5 {[%clk 0:01:59]}  dxe5 {[%clk 0:02:34]} 20. Qc3 {[%clk 0:01:55]}  Qb5 {[%clk 0:02:25]} 21. Ne2 {[%clk 0:01:45]}  Nb6 {[%clk 0:02:24]} 22. Bxb6 {[%clk 0:01:39]}  Rxb6 {[%clk 0:02:19]} 23. h6 {[%clk 0:01:28]}  g6 {[%clk 0:02:18]} 24. f4 {[%clk 0:01:25]}  Re8 {[%clk 0:02:17]} 25. Rhd1 {[%clk 0:01:19]}  Bg4 {[%clk 0:02:14]} 26. fxe5 {[%clk 0:00:57]}  Bxe2 {[%clk 0:01:23]} 27. e6 {[%clk 0:00:57]} 1-0


[Site "https://www.chess.com"]

[Event "Titled Tuesday Blitz May 30 Early 2023"]
[White "De Souza, Cristiano Gomes"]
[Black "Marn, Jan"]
[WhiteFideId "2151758"]
[BlackFideId "14619245"]
[WhiteElo "2068"]
[BlackElo "2242"]
[Result "0-1"]
[Round "04"]
[TimeControl "180+2"]
[Date "2023.05.30"]
[WhiteClock "0:01:11"]
[BlackClock "0:00:08"]

1. d4 {[%clk 0:03:00]}  d5 {[%clk 0:02:53]} 2. c4 {[%clk 0:03:00]}  c6 {[%clk 0:02:48]} 3. Nf3 {[%clk 0:02:59]}  dxc4 {[%clk 0:02:44]} 4. a4 {[%clk 0:02:59]}  Nf6 {[%clk 0:02:43]} 5. e3 {[%clk 0:02:58]}  Bg4 {[%clk 0:02:36]} 6. Bxc4 {[%clk 0:02:56]}  e6 {[%clk 0:02:37]} 7. Nbd2 {[%clk 0:02:55]}  Nbd7 {[%clk 0:02:37]} 8. h3 {[%clk 0:02:54]}  Bh5 {[%clk 0:02:34]} 9. Be2 {[%clk 0:02:53]}  Bd6 {[%clk 0:02:33]} 10. Nc4 {[%clk 0:02:53]}  Bc7 {[%clk 0:02:32]} 11. Bd2 {[%clk 0:02:52]}  O-O {[%clk 0:02:32]} 12. b4 {[%clk 0:02:50]}  Bxf3 {[%clk 0:02:16]} 13. Bxf3 {[%clk 0:02:49]}  e5 {[%clk 0:02:17]} 14. dxe5 {[%clk 0:02:48]}  Nxe5 {[%clk 0:02:17]} 15. Nxe5 {[%clk 0:02:42]}  Bxe5 {[%clk 0:02:18]} 16. Ra3 {[%clk 0:02:38]}  Qd6 {[%clk 0:01:51]} 17. O-O {[%clk 0:02:26]}  Rad8 {[%clk 0:01:51]} 18. Bc3 {[%clk 0:02:17]}  Bxc3 {[%clk 0:01:49]} 19. Qxd6 {[%clk 0:02:15]}  Rxd6 {[%clk 0:01:49]} 20. Rxc3 {[%clk 0:02:12]}  Rfd8 {[%clk 0:01:49]} 21. Rb1 {[%clk 0:02:08]}  Nd5 {[%clk 0:01:03]} 22. Bxd5 {[%clk 0:02:06]}  Rxd5 {[%clk 0:01:04]} 23. b5 {[%clk 0:02:06]}  c5 {[%clk 0:01:02]} 24. a5 {[%clk 0:02:05]}  b6 {[%clk 0:01:01]} 25. axb6 {[%clk 0:02:03]}  axb6 {[%clk 0:01:01]} 26. Ra1 {[%clk 0:02:03]}  Rd1+ {[%clk 0:00:55]} 27. Rxd1 {[%clk 0:02:01]}  Rxd1+ {[%clk 0:00:55]} 28. Kh2 {[%clk 0:02:01]}  Rb1 {[%clk 0:00:56]} 29. Rd3 {[%clk 0:02:00]}  g6 {[%clk 0:00:56]} 30. Rd8+ {[%clk 0:01:55]}  Kg7 {[%clk 0:00:56]} 31. Rc8 {[%clk 0:01:52]}  Rxb5 {[%clk 0:00:55]} 32. Kg3 {[%clk 0:01:53]}  Rb4 {[%clk 0:00:54]} 33. f3 {[%clk 0:01:50]}  c4 {[%clk 0:00:54]} 34. e4 {[%clk 0:01:50]}  b5 {[%clk 0:00:54]} 35. Rc7 {[%clk 0:01:50]}  Kf6 {[%clk 0:00:17]} 36. f4 {[%clk 0:01:50]}  Rb3+ {[%clk 0:00:16]} 37. Kf2 {[%clk 0:01:49]}  c3 {[%clk 0:00:17]} 38. Rc6+ {[%clk 0:01:49]}  Ke7 {[%clk 0:00:17]} 39. Rc7+ {[%clk 0:01:46]}  Ke6 {[%clk 0:00:17]} 40. g4 {[%clk 0:01:46]}  b4 {[%clk 0:00:17]} 41. f5+ {[%clk 0:01:41]}  gxf5 {[%clk 0:00:17]} 42. exf5+ {[%clk 0:01:35]}  Kf6 {[%clk 0:00:18]} 43. h4 {[%clk 0:01:34]}  Rb2+ {[%clk 0:00:17]} 44. Ke3 {[%clk 0:01:34]}  c2 {[%clk 0:00:17]} 45. Kf4 {[%clk 0:01:31]}  h6 {[%clk 0:00:07]} 46. g5+ {[%clk 0:01:31]}  hxg5+ {[%clk 0:00:07]} 47. hxg5+ {[%clk 0:01:31]}  Kg7 {[%clk 0:00:08]} 48. f6+ {[%clk 0:01:30]}  Kg6 {[%clk 0:00:08]} 49. Rc8 {[%clk 0:01:29]}  b3 {[%clk 0:00:07]} 50. Rg8+ {[%clk 0:01:28]}  Kh7 {[%clk 0:00:08]} 51. Rg7+ {[%clk 0:01:28]}  Kh8 {[%clk 0:00:08]} 52. Rxf7 {[%clk 0:01:28]}  c1=Q+ {[%clk 0:00:08]} 53. Kf5 {[%clk 0:01:29]}  Rf2+ {[%clk 0:00:08]} 54. Kg6 {[%clk 0:01:11]}  Qc2+ {[%clk 0:00:08]} 0-1


[Site "https://www.chess.com"]

[Event "Titled Tuesday Blitz May 30 Early 2023"]
[White "Zainullina, Nataliya"]
[Black "Hajiyev, Kanan"]
[WhiteFideId "4145488"]
[BlackFideId "13404148"]
[WhiteElo "2182"]
[BlackElo "2103"]
[Result "0-1"]
[Round "04"]
[TimeControl "180+2"]
[Date "2023.05.30"]
[WhiteClock "0:01:39"]
[BlackClock "0:00:58"]

1. d4 {[%clk 0:02:59]}  Nf6 {[%clk 0:02:46]} 2. Bf4 {[%clk 0:02:57]}  a6 {[%clk 0:02:40]} 3. e3 {[%clk 0:02:52]}  b5 {[%clk 0:02:40]} 4. Nf3 {[%clk 0:02:52]}  Bb7 {[%clk 0:02:41]} 5. c3 {[%clk 0:02:51]}  e6 {[%clk 0:02:41]} 6. Nbd2 {[%clk 0:02:51]}  c5 {[%clk 0:02:41]} 7. Bd3 {[%clk 0:02:50]}  cxd4 {[%clk 0:02:36]} 8. exd4 {[%clk 0:02:50]}  Be7 {[%clk 0:02:35]} 9. O-O {[%clk 0:02:50]}  O-O {[%clk 0:02:35]} 10. Ne5 {[%clk 0:02:48]}  Nc6 {[%clk 0:02:35]} 11. Ndf3 {[%clk 0:02:46]}  Nxe5 {[%clk 0:02:29]} 12. Nxe5 {[%clk 0:02:43]}  d6 {[%clk 0:02:22]} 13. Nf3 {[%clk 0:02:39]}  Nh5 {[%clk 0:02:20]} 14. Bd2 {[%clk 0:02:38]}  Nf6 {[%clk 0:02:19]} 15. Bf4 {[%clk 0:02:37]}  Nd5 {[%clk 0:02:19]} 16. Bd2 {[%clk 0:02:36]}  h6 {[%clk 0:02:16]} 17. Qe2 {[%clk 0:02:33]}  Nf6 {[%clk 0:02:11]} 18. Rfe1 {[%clk 0:02:31]}  Qc7 {[%clk 0:02:09]} 19. Bf4 {[%clk 0:02:30]}  Nh5 {[%clk 0:02:06]} 20. Bd2 {[%clk 0:02:29]}  Bd5 {[%clk 0:02:01]} 21. a4 {[%clk 0:02:25]}  Rab8 {[%clk 0:01:55]} 22. axb5 {[%clk 0:02:24]}  axb5 {[%clk 0:01:56]} 23. Bxb5 {[%clk 0:02:24]}  Bxf3 {[%clk 0:01:55]} 24. gxf3 {[%clk 0:02:22]}  Qb7 {[%clk 0:01:43]} 25. c4 {[%clk 0:02:20]}  d5 {[%clk 0:01:43]} 26. b3 {[%clk 0:02:20]}  Bd6 {[%clk 0:01:37]} 27. Ba4 {[%clk 0:02:07]}  dxc4 {[%clk 0:01:33]} 28. bxc4 {[%clk 0:02:03]}  Qe7 {[%clk 0:01:32]} 29. f4 {[%clk 0:01:52]}  Qh4 {[%clk 0:01:27]} 30. Qf3 {[%clk 0:01:50]}  Rb2 {[%clk 0:01:19]} 31. Be3 {[%clk 0:01:44]}  Nxf4 {[%clk 0:01:08]} 32. Rf1 {[%clk 0:01:39]}  Ne2+ {[%clk 0:00:58]} 0-1


[Site "https://www.chess.com"]

[Event "Titled Tuesday Blitz May 30 Early 2023"]
[White "vlajkovicS"]
[Black "Acikel, Mert"]
[BlackFideId "12956465"]
[WhiteElo "2644"]
[BlackElo "2097"]
[Result "1/2-1/2"]
[Round "04"]
[TimeControl "180+2"]
[Date "2023.05.30"]
[WhiteClock "0:00:24"]
[BlackClock "0:00:31"]

1. Nf3 {[%clk 0:03:00]}  d5 {[%clk 0:02:59]} 2. c4 {[%clk 0:03:00]}  e6 {[%clk 0:02:59]} 3. cxd5 {[%clk 0:03:00]}  exd5 {[%clk 0:02:59]} 4. d4 {[%clk 0:03:01]}  Nf6 {[%clk 0:02:59]} 5. Nc3 {[%clk 0:03:02]}  c6 {[%clk 0:02:59]} 6. g3 {[%clk 0:03:03]}  Be7 {[%clk 0:02:58]} 7. Bg2 {[%clk 0:03:03]}  O-O {[%clk 0:02:58]} 8. O-O {[%clk 0:03:04]}  Nbd7 {[%clk 0:02:57]} 9. Ne5 {[%clk 0:03:04]}  Nxe5 {[%clk 0:02:54]} 10. dxe5 {[%clk 0:03:05]}  Nd7 {[%clk 0:02:53]} 11. f4 {[%clk 0:03:05]}  Re8 {[%clk 0:02:47]} 12. e4 {[%clk 0:03:05]}  dxe4 {[%clk 0:02:46]} 13. Nxe4 {[%clk 0:03:05]}  Nc5 {[%clk 0:02:20]} 14. Qc2 {[%clk 0:03:05]}  Qd4+ {[%clk 0:02:04]} 15. Kh1 {[%clk 0:03:04]}  Bf5 {[%clk 0:02:04]} 16. Nf6+ {[%clk 0:03:03]}  Bxf6 {[%clk 0:02:02]} 17. Qxf5 {[%clk 0:03:03]}  Be7 {[%clk 0:02:02]} 18. Rb1 {[%clk 0:02:53]}  Rad8 {[%clk 0:01:54]} 19. h3 {[%clk 0:01:53]}  Nd3 {[%clk 0:01:52]} 20. e6 {[%clk 0:01:47]}  fxe6 {[%clk 0:01:45]} 21. Qxe6+ {[%clk 0:01:48]}  Kh8 {[%clk 0:01:44]} 22. Qg4 {[%clk 0:01:45]}  Nf2+ {[%clk 0:01:41]} 23. Rxf2 {[%clk 0:01:44]}  Qxf2 {[%clk 0:01:42]} 24. b4 {[%clk 0:01:27]}  Bxb4 {[%clk 0:01:35]} 25. Bb2 {[%clk 0:01:21]}  Re1+ {[%clk 0:01:05]} 26. Rxe1 {[%clk 0:01:21]}  Qxe1+ {[%clk 0:01:06]} 27. Kh2 {[%clk 0:01:21]}  Bc3 {[%clk 0:01:05]} 28. Qg5 {[%clk 0:00:56]}  Rd1 {[%clk 0:01:03]} 29. h4 {[%clk 0:00:47]}  Bxb2 {[%clk 0:00:57]} 30. Qh5 {[%clk 0:00:48]}  Qe7 {[%clk 0:00:47]} 31. Qxd1 {[%clk 0:00:47]}  g6 {[%clk 0:00:39]} 32. a4 {[%clk 0:00:43]}  Kg7 {[%clk 0:00:39]} 33. a5 {[%clk 0:00:41]}  a6 {[%clk 0:00:38]} 34. h5 {[%clk 0:00:40]}  c5 {[%clk 0:00:35]} 35. Qd5 {[%clk 0:00:36]}  Bd4 {[%clk 0:00:28]} 36. hxg6 {[%clk 0:00:33]}  hxg6 {[%clk 0:00:27]} 37. Qxb7 {[%clk 0:00:32]}  Qxb7 {[%clk 0:00:26]} 38. Bxb7 {[%clk 0:00:33]}  Bc3 {[%clk 0:00:27]} 39. Bxa6 {[%clk 0:00:33]}  Bxa5 {[%clk 0:00:28]} 40. Kh3 {[%clk 0:00:31]}  Kf6 {[%clk 0:00:28]} 41. Kg4 {[%clk 0:00:31]}  Bd2 {[%clk 0:00:28]} 42. Bd3 {[%clk 0:00:31]}  Be3 {[%clk 0:00:29]} 43. Kf3 {[%clk 0:00:31]}  Bc1 {[%clk 0:00:28]} 44. g4 {[%clk 0:00:30]}  g5 {[%clk 0:00:29]} 45. fxg5+ {[%clk 0:00:28]}  Kxg5 {[%clk 0:00:28]} 46. Be2 {[%clk 0:00:29]}  Ba3 {[%clk 0:00:29]} 47. Ke4 {[%clk 0:00:28]}  Bb4 {[%clk 0:00:30]} 48. Kd5 {[%clk 0:00:24]}  Ba3 {[%clk 0:00:31]} 1/2-1/2


[Site "https://www.chess.com"]

[Event "Titled Tuesday Blitz May 30 Early 2023"]
[White "Ciuffoletti, Paolo"]
[Black "Muthaiah AL"]
[WhiteFideId "807630"]
[BlackFideId "5092442"]
[WhiteElo "2143"]
[BlackElo "2353"]
[Result "0-1"]
[Round "04"]
[TimeControl "180+2"]
[Date "2023.05.30"]
[WhiteClock "0:00:00"]
[BlackClock "0:00:17"]

1. e4 {[%clk 0:02:48]}  e6 {[%clk 0:02:56]} 2. d4 {[%clk 0:02:48]}  d5 {[%clk 0:02:56]} 3. e5 {[%clk 0:02:48]}  c5 {[%clk 0:02:55]} 4. c3 {[%clk 0:02:48]}  Nc6 {[%clk 0:02:55]} 5. Nf3 {[%clk 0:02:48]}  Qb6 {[%clk 0:02:54]} 6. a3 {[%clk 0:02:48]}  a5 {[%clk 0:02:50]} 7. b3 {[%clk 0:02:46]}  Nh6 {[%clk 0:02:49]} 8. Bd3 {[%clk 0:02:41]}  Bd7 {[%clk 0:02:46]} 9. O-O {[%clk 0:02:40]}  cxd4 {[%clk 0:02:46]} 10. b4 {[%clk 0:02:07]}  axb4 {[%clk 0:02:37]} 11. cxb4 {[%clk 0:01:45]}  Nxb4 {[%clk 0:02:16]} 12. Be2 {[%clk 0:01:03]}  d3 {[%clk 0:00:51]} 13. Bxd3 {[%clk 0:01:01]}  Nxd3 {[%clk 0:00:51]} 14. Qxd3 {[%clk 0:01:01]}  Bb5 {[%clk 0:00:52]} 15. Qb3 {[%clk 0:01:01]}  Bc5 {[%clk 0:00:51]} 16. Rd1 {[%clk 0:00:26]}  Bxf2+ {[%clk 0:00:40]} 17. Kh1 {[%clk 0:00:25]}  Ba4 {[%clk 0:00:27]} 18. Qxb6 {[%clk 0:00:20]}  Bxb6 {[%clk 0:00:28]} 19. Re1 {[%clk 0:00:12]}  Ng4 {[%clk 0:00:27]} 20. h3 {[%clk 0:00:10]}  Nf2+ {[%clk 0:00:27]} 21. Kh2 {[%clk 0:00:10]}  Nd3 {[%clk 0:00:27]} 22. Rf1 {[%clk 0:00:07]}  Nxe5 {[%clk 0:00:19]} 23. Nxe5 {[%clk 0:00:04]}  Bd4 {[%clk 0:00:19]} 24. Ra2 {[%clk 0:00:00]}  Bxe5+ {[%clk 0:00:17]} 0-1


[Site "https://www.chess.com"]

[Event "Titled Tuesday Blitz May 30 Early 2023"]
[White "Gulkov, Igor A."]
[Black "Brown, Raehanna"]
[WhiteFideId "4120973"]
[BlackFideId "7402740"]
[WhiteElo "2343"]
[BlackElo "1655"]
[Result "1-0"]
[Round "04"]
[TimeControl "180+2"]
[Date "2023.05.30"]
[WhiteClock "0:00:19"]
[BlackClock "0:00:00"]

1. Nf3 {[%clk 0:03:00]}  Nf6 {[%clk 0:02:59]} 2. c4 {[%clk 0:02:59]}  g6 {[%clk 0:02:59]} 3. Nc3 {[%clk 0:02:58]}  Bg7 {[%clk 0:03:00]} 4. e4 {[%clk 0:02:57]}  d6 {[%clk 0:03:00]} 5. d4 {[%clk 0:02:57]}  O-O {[%clk 0:03:01]} 6. Be2 {[%clk 0:02:57]}  e5 {[%clk 0:03:01]} 7. Be3 {[%clk 0:02:56]}  Nc6 {[%clk 0:03:01]} 8. d5 {[%clk 0:02:56]}  Ne7 {[%clk 0:03:02]} 9. Nd2 {[%clk 0:02:55]}  Ne8 {[%clk 0:03:02]} 10. b4 {[%clk 0:02:55]}  f5 {[%clk 0:03:02]} 11. f3 {[%clk 0:02:54]}  f4 {[%clk 0:03:02]} 12. Bf2 {[%clk 0:02:54]}  g5 {[%clk 0:03:00]} 13. c5 {[%clk 0:02:53]}  Ng6 {[%clk 0:03:00]} 14. Nc4 {[%clk 0:02:53]}  Nf6 {[%clk 0:02:53]} 15. cxd6 {[%clk 0:02:53]}  cxd6 {[%clk 0:02:54]} 16. Nb5 {[%clk 0:02:52]}  Ne8 {[%clk 0:02:42]} 17. Nxa7 {[%clk 0:02:51]}  g4 {[%clk 0:02:34]} 18. Nxc8 {[%clk 0:02:47]}  Rxc8 {[%clk 0:02:33]} 19. fxg4 {[%clk 0:02:47]}  Nf6 {[%clk 0:02:32]} 20. Nd2 {[%clk 0:02:44]}  Rf7 {[%clk 0:02:06]} 21. O-O {[%clk 0:02:41]}  Rfc7 {[%clk 0:02:06]} 22. a4 {[%clk 0:02:39]}  Rc2 {[%clk 0:02:03]} 23. Bd3 {[%clk 0:02:37]}  R2c3 {[%clk 0:01:56]} 24. Be2 {[%clk 0:02:26]}  Rc2 {[%clk 0:01:56]} 25. a5 {[%clk 0:02:25]}  Bh6 {[%clk 0:01:54]} 26. Bf3 {[%clk 0:02:21]}  Bg5 {[%clk 0:01:39]} 27. Qe1 {[%clk 0:02:14]}  Qd7 {[%clk 0:01:25]} 28. Qe2 {[%clk 0:01:57]}  Nh4 {[%clk 0:01:16]} 29. b5 {[%clk 0:01:48]}  Nxf3+ {[%clk 0:01:15]} 30. gxf3 {[%clk 0:01:47]}  h5 {[%clk 0:01:12]} 31. h3 {[%clk 0:01:45]}  hxg4 {[%clk 0:01:11]} 32. hxg4 {[%clk 0:01:44]}  Kg7 {[%clk 0:01:04]} 33. a6 {[%clk 0:01:38]}  bxa6 {[%clk 0:00:55]} 34. bxa6 {[%clk 0:01:38]}  Nxg4 {[%clk 0:00:36]} 35. a7 {[%clk 0:01:19]}  Nxf2 {[%clk 0:00:20]} 36. Rxf2 {[%clk 0:01:18]}  Ra8 {[%clk 0:00:17]} 37. Rg2 {[%clk 0:01:17]}  Kf6 {[%clk 0:00:17]} 38. Qd3 {[%clk 0:00:38]}  Rc7 {[%clk 0:00:15]} 39. Nf1 {[%clk 0:00:36]}  Rcxa7 {[%clk 0:00:15]} 40. Rxa7 {[%clk 0:00:35]}  Qxa7+ {[%clk 0:00:16]} 41. Kh1 {[%clk 0:00:31]}  Rh8+ {[%clk 0:00:16]} 42. Nh2 {[%clk 0:00:30]}  Qa1+ {[%clk 0:00:13]} 43. Rg1 {[%clk 0:00:30]}  Qb2 {[%clk 0:00:13]} 44. Rg2 {[%clk 0:00:29]}  Qc1+ {[%clk 0:00:13]} 45. Rg1 {[%clk 0:00:29]}  Qb2 {[%clk 0:00:13]} 46. Rg2 {[%clk 0:00:28]}  Qc1+ {[%clk 0:00:09]} 47. Rg1 {[%clk 0:00:28]}  Qe3 {[%clk 0:00:07]} 48. Qxe3 {[%clk 0:00:26]}  fxe3 {[%clk 0:00:08]} 49. Kg2 {[%clk 0:00:26]}  Bf4 {[%clk 0:00:06]} 50. Ng4+ {[%clk 0:00:25]}  Kg5 {[%clk 0:00:06]} 51. Re1 {[%clk 0:00:23]}  Rh4 {[%clk 0:00:04]} 52. Nxe3 {[%clk 0:00:23]}  Rh2+ {[%clk 0:00:04]} 53. Kg1 {[%clk 0:00:22]}  Rd2 {[%clk 0:00:02]} 54. Ng2 {[%clk 0:00:20]}  Rd3 {[%clk 0:00:00]} 55. Kf2 {[%clk 0:00:19]} 1-0


[Site "https://www.chess.com"]

[Event "Titled Tuesday Blitz May 30 Early 2023"]
[White "Guevara Sanchez, Erick Marvin"]
[Black "Manukian, Artak"]
[WhiteFideId "6700136"]
[BlackFideId "13301373"]
[WhiteElo "2040"]
[BlackElo "2130"]
[Result "0-1"]
[Round "04"]
[TimeControl "180+2"]
[Date "2023.05.30"]
[WhiteClock "0:00:10"]
[BlackClock "0:00:39"]

1. e4 {[%clk 0:03:00]}  c5 {[%clk 0:02:56]} 2. Nf3 {[%clk 0:03:00]}  e6 {[%clk 0:02:54]} 3. d4 {[%clk 0:03:00]}  cxd4 {[%clk 0:02:54]} 4. Nxd4 {[%clk 0:03:00]}  Nf6 {[%clk 0:02:54]} 5. Bd3 {[%clk 0:02:59]}  d6 {[%clk 0:02:51]} 6. Nc3 {[%clk 0:02:55]}  a6 {[%clk 0:02:50]} 7. Bg5 {[%clk 0:02:51]}  Be7 {[%clk 0:02:50]} 8. Qd2 {[%clk 0:02:48]}  b5 {[%clk 0:02:50]} 9. f3 {[%clk 0:02:46]}  Bb7 {[%clk 0:02:45]} 10. h4 {[%clk 0:02:21]}  Nbd7 {[%clk 0:02:31]} 11. h5 {[%clk 0:02:18]}  h6 {[%clk 0:02:30]} 12. Be3 {[%clk 0:02:16]}  Ne5 {[%clk 0:02:25]} 13. O-O-O {[%clk 0:01:53]}  Rc8 {[%clk 0:02:24]} 14. f4 {[%clk 0:01:41]}  Nc4 {[%clk 0:02:15]} 15. Bxc4 {[%clk 0:01:40]}  Rxc4 {[%clk 0:02:16]} 16. e5 {[%clk 0:01:31]}  Nd5 {[%clk 0:01:58]} 17. Nxd5 {[%clk 0:01:21]}  Bxd5 {[%clk 0:01:58]} 18. Rhe1 {[%clk 0:01:06]}  O-O {[%clk 0:01:52]} 19. Kb1 {[%clk 0:01:01]}  Qc7 {[%clk 0:01:43]} 20. exd6 {[%clk 0:00:52]}  Bxd6 {[%clk 0:01:42]} 21. f5 {[%clk 0:00:51]}  Rd8 {[%clk 0:01:21]} 22. Bxh6 {[%clk 0:00:39]}  Rxd4 {[%clk 0:01:11]} 23. Qxd4 {[%clk 0:00:28]}  gxh6 {[%clk 0:01:10]} 24. f6 {[%clk 0:00:25]}  Bf4 {[%clk 0:00:56]} 25. g3 {[%clk 0:00:23]}  Bxa2+ {[%clk 0:00:52]} 26. Kxa2 {[%clk 0:00:22]}  Rxd4 {[%clk 0:00:53]} 27. Rxd4 {[%clk 0:00:20]}  Bg5 {[%clk 0:00:49]} 28. Rf1 {[%clk 0:00:18]}  Kh7 {[%clk 0:00:41]} 29. Rf2 {[%clk 0:00:10]}  Be3 {[%clk 0:00:39]} 0-1


[Site "https://www.chess.com"]